fUST/lending_fUST_20240809
["ID","MTS","AMOUNT","RATE_DAILY","PERIOD"]
[334527234,1723174241538,-154.79103211,0.00019167,2]
[334527237,1723174241548,-188.2181997,0.00019167,2]
[334527239,1723174241559,-2125.78393313,0.00019167,2]
[334527241,1723174241569,-35031.14789157,0.00019167,2]
[334527242,1723174241578,-192.07795821,0.00019167,2]
[334527246,1723174241588,-343.31801013,0.00019177,2]
[334527248,1723174241598,-254.69944997,0.00019177,2]
[334527250,1723174241609,-156.78691505,0.00019177,2]
[334527252,1723174241619,-1668.9606488,0.00019177,2]
[334527254,1723174241629,-154.86364515,0.00019177,2]
[334527256,1723174241638,-808.66218785,0.00019177,2]
[334527258,1723174241648,-168.836894,0.00019178,2]
[334527260,1723174241658,-14980.64673665,0.00019189,2]
[334527262,1723174241668,-150.112233,0.000192,2]
[334527264,1723174241678,-278.93906114,0.00019245,2]
[334527266,1723174241688,-500.0,0.00019245,2]
[334527268,1723174241698,-198.61491703,0.00019245,2]
[334527270,1723174241712,-604.08581099,0.00019245,2]
[334527272,1723174241722,-604.08581099,0.00019245,2]
[334527275,1723174241731,-604.08581099,0.00019245,2]
[334527277,1723174241741,-306.89029979,0.00019245,2]
[334527279,1723174241751,-604.08581099,0.00019245,2]
[334527280,1723174241760,-604.08581099,0.00019245,2]
[334527282,1723174241770,-604.08581099,0.00019245,2]
[334527284,1723174241780,-604.08581099,0.00019245,2]
[334527286,1723174241790,-604.08581099,0.00019245,2]
[334527288,1723174241800,-604.08581099,0.00019245,2]
[334527290,1723174241810,-604.08581099,0.00019245,2]
[334527292,1723174241820,-604.08581099,0.00019245,2]
[334527294,1723174241830,-604.08581099,0.00019245,2]
[334527296,1723174241839,-56534.27545616,0.00019246,2]
[334527299,1723174241854,-12557.10114074,0.00019246,2]
[334527301,1723174241864,-250.47658072,0.00019256,2]
[334527303,1723174241874,-534.23635652,0.00019256,2]
[334527305,1723174241884,-543.3913977,0.00019256,2]
[334527307,1723174241894,-154.79103211,0.00019256,2]
[334527309,1723174241906,-154.90888079,0.00019256,2]
[334527311,1723174241915,-162.5826843,0.00019256,2]
[334527314,1723174241925,-519.94052242,0.00019256,2]
[334527316,1723174241935,-816.72532423,0.00019256,2]
[334527318,1723174241944,-155.31754443,0.00019256,2]
[334527320,1723174241956,-205.31051458,0.00019256,2]
[334527322,1723174241966,-420.0,0.00019287,2]
[334527324,1723174241976,-1109.20863131,0.00019451,2]
[334527326,1723174241986,-709.59190356,0.00019451,2]
[334527328,1723174241996,-183.21593301,0.00019451,2]
[334527330,1723174242006,-209.98990113,0.00019451,2]
[334527332,1723174242016,-154.79103211,0.00019451,2]
[334527334,1723174242026,-154.79103211,0.00019451,2]
[334527336,1723174242036,-157.05367525,0.00019451,2]
[334527338,1723174242046,-69091.3765969,0.00019466,2]
[334527340,1723174242056,-151.0,0.00019467,2]
[334527343,1723174242067,-714.685641,0.00019467,2]
[334527345,1723174242077,-714.685641,0.00019467,2]
[334527347,1723174242087,-151.0,0.00019467,2]
[334527349,1723174242096,-151.0,0.00019467,2]
[334527351,1723174242106,-206.115534,0.00019467,2]
[334527352,1723174242116,-483.167831,0.00019467,2]
[334527353,1723174242125,-229.4013,0.00019467,2]
[334527354,1723174242135,-69091.3765969,0.00019468,2]
[334527355,1723174242146,-156.82503371,0.00019477,2]
[334527356,1723174242156,-154.79103211,0.00019477,2]
[334527357,1723174242166,-231.32946189,0.00019477,2]
[334527358,1723174242175,-156.82503371,0.00019477,2]
[334527369,1723174242390,-810.44375008,0.00019477,2]
[334527372,1723174242401,-154.79103211,0.00019477,2]
[334527374,1723174242411,-201.59267893,0.00019477,2]
[334527376,1723174242421,-539.53986338,0.00019477,2]
[334527378,1723174242430,-154.79103211,0.00019477,2]
[334527380,1723174242440,-154.79103211,0.00019477,2]
[334527382,1723174242449,-155.38745769,0.00019477,2]
[334527384,1723174242460,-1611.61280657,0.00019477,2]
[334527386,1723174242470,-493.87705472,0.00019477,2]
[334527388,1723174242484,-14980.64673665,0.00019491,2]
[334527390,1723174242494,-154.79103211,0.00019547,2]
[334527392,1723174242505,-154.79103211,0.00019547,2]
[334527394,1723174242515,-532.54272678,0.00019547,2]
[334527396,1723174242525,-154.79103211,0.00019547,2]
[334527399,1723174242536,-154.79103211,0.00019547,2]
[334527401,1723174242548,-20771.62269481,0.00019547,2]
[334527403,1723174242559,-694.52815247,0.00019547,2]
[334527405,1723174242570,-14980.64673665,0.00019792,2]
[334527407,1723174242579,-150.112233,0.000198,2]
[334527409,1723174242589,-3152.68493021,0.0001989,2]
[334527411,1723174242599,-69091.3765969,0.00019892,2]
[334527413,1723174242609,-151.821473,0.00019892,2]
[334527416,1723174242618,-714.685641,0.00019892,2]
[334527418,1723174242628,-714.685641,0.00019892,2]
[334527420,1723174242637,-151.0,0.00019892,2]
[334527422,1723174242646,-206.115534,0.00019892,2]
[334527424,1723174242656,-200.0,0.00019973,2]
[334527426,1723174242666,-151.0,0.0001999,2]
[334527428,1723174242676,-378.597642,0.0001999,2]
[334527430,1723174242686,-378.597642,0.0001999,2]
[334527432,1723174242695,-151.0,0.0001999,2]
[334527435,1723174242715,-151.0,0.0001999,2]
[334527437,1723174242725,-151.0,0.0001999,2]
[334527439,1723174242734,-164.02408,0.0001999,2]
[334527442,1723174242744,-195.655074,0.0001999,2]
[334527445,1723174242754,-195.655074,0.0001999,2]
[334527448,1723174242764,-364.973837,0.0001999,2]
[334527451,1723174242773,-364.973837,0.0001999,2]
[334527454,1723174242783,-151.0,0.0001999,2]
[334527457,1723174242792,-964.945996,0.0001999,2]
[334527459,1723174242802,-964.945996,0.0001999,2]
[334527461,1723174242811,-151.0,0.0001999,2]
[334527463,1723174242821,-151.0,0.0001999,2]
[334527465,1723174242832,-151.0,0.0001999,2]
[334527467,1723174242842,-151.0,0.0001999,2]
[334527469,1723174242851,-627.971317,0.0001999,2]
[334527472,1723174242861,-627.971317,0.0001999,2]
[334527474,1723174242871,-154.79103211,0.00019999,2]
[334527476,1723174242881,-932.72964545,0.00019999,2]
[334527478,1723174242891,-209.31521257,0.00019999,2]
[334527480,1723174242901,-180.58289429,0.00019999,2]
[334527482,1723174242911,-413.18177562,0.00019999,2]
[334527484,1723174242920,-154.79103211,0.00019999,2]
[334527485,1723174242930,-209.31521257,0.00019999,2]
[334527487,1723174242939,-151.0,0.00019999,2]
[334527489,1723174242949,-10493.07332189,0.0002,2]
[334527491,1723174242960,-1626.92608275,0.0002,2]
[334527493,1723174242969,-154.79103211,0.0002,2]
[334527495,1723174242978,-1364.15976013,0.0002,2]
[334527497,1723174242988,-318.56274014,0.0002,2]
[334527499,1723174242997,-151.56653755,0.0002,2]
[334527501,1723174243007,-156.45284227,0.0002,2]
[334527503,1723174243016,-121582.34440862,0.0002,2]
[334527505,1723174243026,-1444.60456197,0.0002,2]
[334527507,1723174243036,-153.143073,0.0002,2]
[334527509,1723174243046,-378.597642,0.0002,2]
[334527511,1723174243055,-378.597642,0.0002,2]
[334527513,1723174243064,-151.0,0.0002,2]
[334527515,1723174243074,-154.227697,0.0002,2]
[334527517,1723174243083,-195.655074,0.0002,2]
[334527519,1723174243093,-195.655074,0.0002,2]
[334527521,1723174243103,-364.973837,0.0002,2]
[334527523,1723174243112,-364.973837,0.0002,2]
[334527525,1723174243123,-151.0,0.0002,2]
[334527527,1723174243133,-964.945996,0.0002,2]
[334527529,1723174243143,-964.945996,0.0002,2]
[334527531,1723174243154,-177.502914,0.0002,2]
[334527533,1723174243163,-151.0,0.0002,2]
[334527535,1723174243173,-151.0,0.0002,2]
[334527537,1723174243183,-151.0,0.0002,2]
[334527539,1723174243194,-151.0,0.0002,2]
[334527541,1723174243204,-151.0,0.0002,2]
[334527543,1723174243214,-627.971317,0.0002,2]
[334527545,1723174243225,-151.0,0.0002,2]
[334527547,1723174243234,-627.971317,0.0002,2]
[334527549,1723174243244,-174.486346,0.0002,2]
[334527551,1723174243254,-397.872742,0.0002,2]
[334527553,1723174243263,-397.872742,0.0002,2]
[334527555,1723174243272,-151.0,0.0002,2]
[334527557,1723174243282,-311.467304,0.0002,2]
[334527559,1723174243292,-311.467304,0.0002,2]
[334527560,1723174243301,-714.685641,0.0002,2]
[334527562,1723174243311,-714.685641,0.0002,2]
[334527564,1723174243320,-151.0,0.0002,2]
[334527566,1723174243330,-215.354607,0.0002,2]
[334527568,1723174243342,-206.115534,0.0002,2]
[334527570,1723174243351,-648.4,0.00020056,3]
[334527572,1723174243361,-324.2,0.00020056,3]
[334527574,1723174243371,-155.3373073,0.0002028,2]
[334527576,1723174243381,-2593.58,0.00020281,3]
[334527578,1723174243390,-1296.78,0.00020281,3]
[334527580,1723174243399,-150.112233,0.000204,3]
[334527583,1723174243409,-201.0906367,0.00020589,2]
[334527586,1723174243419,-587.0,0.00020894,2]
[334527589,1723174243428,-150.112233,0.000209,5]
[334527591,1723174243438,-301.1738371,0.00020999,2]
[334527593,1723174243447,-301.1738371,0.00020999,2]
[334527595,1723174243456,-297.15758386,0.00021,2]
[334527597,1723174243466,-154.79103211,0.00021011,2]
[334527599,1723174243478,-522.63402036,0.00021011,2]
[334527601,1723174243487,-522.63402036,0.00021048,2]
[334527603,1723174243497,-314.09240613,0.00021048,2]
[334527605,1723174243506,-587.0,0.00021215,2]
[334527607,1723174243516,-400.0,0.00021342,2]
[334527608,1723174243526,-150.112233,0.000215,2]
[334527610,1723174243536,-151.0,0.00021532,2]
[334527612,1723174243546,-151.0,0.00021532,2]
[334527614,1723174243558,-152.430025,0.00021532,2]
[334527616,1723174243568,-151.0,0.00021532,2]
[334527618,1723174243577,-494.53502099,0.00021542,2]
[334527620,1723174243587,-151.0,0.00021579,2]
[334527623,1723174243597,-151.0,0.00021579,2]
[334527624,1723174243606,-151.0,0.00021579,2]
[334527626,1723174243616,-169.870398,0.00021589,2]
[334527628,1723174243626,-169.870398,0.00021589,2]
[334527630,1723174243635,-152.699681,0.00021589,2]
[334527632,1723174243645,-151.0,0.00021589,2]
[334527634,1723174243654,-151.0,0.00021589,2]
[334527636,1723174243663,-169.087658,0.00021589,2]
[334527639,1723174243689,-151.0,0.00021589,2]
[334527642,1723174243701,-157.90486107,0.00021591,2]
[334527644,1723174243711,-157.90486107,0.00021591,2]
[334527646,1723174243722,-2000.0,0.00021641,2]
[334527648,1723174243732,-1285.11282224,0.00021641,2]
[334527650,1723174243742,-42366.16356883,0.00021642,2]
[334527652,1723174243752,-504.22103723,0.00021658,2]
[334527654,1723174243762,-152.734404,0.00021806,2]
[334527656,1723174243773,-150.112235,0.000219,4]
[334527658,1723174243783,-151.0,0.00021906,2]
[334527660,1723174243794,-151.0,0.00021906,2]
[334527661,1723174243804,-151.0,0.00021906,2]
[334527663,1723174243815,-151.0,0.00021906,2]
[334527665,1723174243825,-151.0,0.00021906,2]
[334527667,1723174243835,-500.0,0.00021917,4]
[334527669,1723174243847,-500.0,0.00021917,4]
[334527671,1723174243857,-516.97099816,0.00021917,4]
[334527674,1723174243868,-151.0,0.00021918,2]
[334527676,1723174243878,-210.76,0.00022,7]
[334527678,1723174243888,-6351.89,0.00022,14]
[334527680,1723174243899,-560.66,0.00022,14]
[334527682,1723174243909,-174.0,0.00022,2]
[334527684,1723174243919,-150.112233,0.000221,5]
[334527686,1723174243929,-3152.68493021,0.0002228,2]
[334527688,1723174243940,-150.112233,0.000224,4]
[334527690,1723174243950,-150.112233,0.000227,2]
[334527692,1723174243961,-150.112233,0.000229,3]
[334527694,1723174243978,-1074.919792,0.00023011,2]
[334527697,1723174243987,-150.112233,0.000233,4]
[334527699,1723174243997,-823.0,0.00023337,2]
[334527701,1723174244007,-600.0,0.00023346,2]
[334527703,1723174244016,-150.112233,0.000235,5]
[334527705,1723174244026,-150.112233,0.000238,4]
[334527707,1723174244037,-5209.96433418,0.00023853,2]
[334527709,1723174244050,-150.112233,0.00024,3]
[334527711,1723174244061,-4351.71715984,0.00024,30]
[334527713,1723174244071,-153.0,0.00024003,2]
[334527715,1723174244081,-153.0,0.00024003,2]
[334527718,1723174244091,-153.0,0.00024003,2]
[334527720,1723174244100,-153.0,0.00024003,2]
[334527722,1723174244110,-5209.96433418,0.00024237,2]
[334527724,1723174244121,-153.0,0.00024384,2]
[334527726,1723174244131,-267.8162636,0.00024384,2]
[334527728,1723174244141,-153.0,0.00024384,2]
[334527730,1723174244151,-306.0,0.00024384,2]
[334527732,1723174244161,-153.0,0.00024384,2]
[334527734,1723174244170,-267.747436,0.00024384,2]
[334527736,1723174244181,-5209.96433418,0.00024389,2]
[334527738,1723174244190,-150.112233,0.000244,2]
[334527740,1723174244200,-714.685641,0.00024499,7]
[334527742,1723174244210,-714.685641,0.00024499,7]
[334527744,1723174244220,-151.0,0.00024499,7]
[334527746,1723174244230,-206.115534,0.00024499,7]
[334527748,1723174244239,-150.112233,0.000245,3]
[334527750,1723174244249,-378.597642,0.000245,7]
[334527752,1723174244258,-378.597642,0.000245,7]
[334527754,1723174244268,-151.0,0.000245,7]
[334527757,1723174244278,-155.448318,0.00024524,7]
[334527759,1723174244288,-151.0,0.00024524,7]
[334527761,1723174244298,-150.52070897,0.0002454,2]
[334527763,1723174244308,-153.0,0.00024658,2]
[334527765,1723174244317,-153.0,0.00024658,2]
[334527767,1723174244327,-3152.68493021,0.0002467,2]
[334527769,1723174244336,-5209.96433419,0.0002478,2]
[334527771,1723174244346,-43189.34508509,0.000248,2]
[334527773,1723174244355,-169.870398,0.000248,7]
[334527775,1723174244365,-169.870398,0.000248,7]
[334527777,1723174244375,-152.069158,0.000248,7]
[334527779,1723174244385,-163.905472,0.000248,7]
[334527781,1723174244395,-195.655074,0.000248,7]
[334527783,1723174244404,-195.655074,0.000248,7]
[334527785,1723174244414,-364.973837,0.000248,7]
[334527787,1723174244425,-364.973837,0.000248,7]
[334527789,1723174244436,-151.0,0.000248,7]
[334527792,1723174244448,-964.945996,0.000248,7]
[334527794,1723174244459,-964.945996,0.000248,7]
[334527796,1723174244468,-153.311632,0.000248,7]
[334527798,1723174244482,-151.0,0.000248,2]
[334527800,1723174244492,-151.0,0.000248,2]
[334527802,1723174244502,-151.0,0.000248,7]
[334527804,1723174244511,-152.761347,0.000248,7]
[334527806,1723174244522,-627.971317,0.000248,7]
[334527808,1723174244531,-151.0,0.000248,7]
[334527810,1723174244541,-627.971317,0.000248,7]
[334527812,1723174244551,-151.0,0.000248,7]
[334527813,1723174244561,-397.872742,0.000248,7]
[334527815,1723174244570,-397.872742,0.000248,7]
[334527817,1723174244579,-151.550525,0.000248,7]
[334527819,1723174244589,-311.467304,0.000248,7]
[334527821,1723174244598,-311.467304,0.000248,7]
[334527823,1723174244608,-1502.94121083,0.00024868,2]
[334527825,1723174244618,-254.44050928,0.0002487,2]
[334527827,1723174244628,-153.550396,0.00024899,7]
[334527829,1723174244637,-151.0,0.00024899,7]
[334527831,1723174244647,-153.846739,0.00024899,7]
[334527833,1723174244656,-180.064858,0.00024899,7]
[334527835,1723174244666,-151.0,0.00024899,7]
[334527837,1723174244675,-378.597642,0.00024899,7]
[334527839,1723174244685,-378.597642,0.00024899,7]
[334527841,1723174244694,-151.0,0.00024899,7]
[334527843,1723174244703,-6051.11453676,0.000249,2]
[334527845,1723174244718,-1000.0,0.00024905,2]
[334527847,1723174244728,-500.01,0.00024915,2]
[334527849,1723174244738,-292.0,0.00024932,2]
[334527851,1723174244747,-200.0,0.00024973,2]
[334527853,1723174244757,-200.0,0.00024973,2]
[334527855,1723174244767,-154.9926017,0.00024973,2]
[334527857,1723174244776,-200.0,0.00024973,2]
[334527859,1723174244786,-1000.0,0.00024992,2]
[334527862,1723174244795,-150.01,0.00024999,2]
[334527864,1723174244805,-2993.10206773,0.00024999,2]
[334527866,1723174244815,-500.0,0.00024999,2]
[334527868,1723174244825,-40157.48828304,0.00025,11]
[334527870,1723174244835,-649917.74606182,0.00025,2]
[334527899,1723174245104,-9648.27796999,0.00019167,2]
[334527901,1723174245115,-174.63190084,0.00019177,2]
[334527903,1723174245125,-206.115534,0.00019467,2]
[334527905,1723174245135,-677.28214947,0.00019477,2]
[334527935,1723174245418,273.37336231,9.9e-05,2]
[334528037,1723174246382,-403.97923523,0.00018489,2]
[334528038,1723174246394,-319.90937201,0.00018587,2]
[334528039,1723174246403,-471.11500661,0.00018658,2]
[334528040,1723174246412,-156.69756504,0.00019155,2]
[334528041,1723174246422,-217.79882111,0.00019177,2]
[334528227,1723174248394,160.09033747,0.00014545,2]
[334529244,1723174258656,1096.39591705,0.00014545,2]
[334533270,1723174301347,513.14,0.00010959,2]
[334533322,1723174311721,513.14,0.00010959,2]
[334533323,1723174322287,342.09,0.00010959,2]
[334533324,1723174330181,284.16424637,0.00013283,2]
[334533325,1723174332853,285.08,0.00010959,2]
[334533326,1723174333392,273.37336231,9.9e-05,2]
[334533327,1723174343468,237.56,0.00010959,2]
[334533328,1723174349027,273.37336231,9.9e-05,2]
[334533329,1723174349075,532.54272678,0.00013283,2]
[334533330,1723174353398,738.58105149,0.00013283,2]
[334533331,1723174354070,197.97,0.00010959,2]
[334533332,1723174361970,492.59464676,0.00015,2]
[334533333,1723174364682,164.98,0.00010959,2]
[334533334,1723174375190,824.9,0.00010959,2]
[334533335,1723174467809,725.85,0.00010959,2]
[334533336,1723174483059,494.53502099,0.00013283,2]
[334533337,1723174526062,494.53502099,0.00013283,2]
[334533338,1723174529602,810.49,0.00010959,2]
[334533339,1723174531258,197.22406328,0.00013283,2]
[334533340,1723174533832,522.63402036,0.00013283,2]
[334533341,1723174541187,675.41,0.00010959,2]
[334533342,1723174541555,155.3373073,0.00013283,2]
[334533343,1723174551345,562.84,0.00010959,2]
[334533344,1723174561944,469.03,0.00010959,2]
[334533345,1723174572453,390.86,0.00010959,2]
[334533346,1723174582994,325.72,0.00010959,2]
[334533347,1723174593757,271.43,0.00010959,2]
[334533348,1723174597854,163.251953,0.00014247,2]
[334533349,1723174601964,3000.0,0.00015205,2]
[334533350,1723174604069,226.19,0.00010959,2]
[334533351,1723174614588,364.37,0.00010959,2]
[334533353,1723174625109,303.64,0.00010959,2]
[334533356,1723174635670,297.0,0.00010959,2]
[334533357,1723174646460,985.17,0.00010959,2]
[334533358,1723174664537,1138.917064,0.00015168,2]
[334533359,1723174666115,813.60291134,0.00015995,2]
[334533360,1723174667988,820.98,0.00010959,2]
[334533361,1723174678493,684.15,0.00010959,2]
[334533362,1723174689885,806.95285728,0.00013283,2]
[334533363,1723174692032,240.94479863,0.00013283,2]
[334533364,1723174698067,231.32946189,0.00013283,2]
[334533365,1723174698154,156.91765496,0.00013283,2]
[334533366,1723174700004,570.12,0.00010959,2]
[334533367,1723174704039,154.90157733,0.00013283,2]
[334533368,1723174704208,154.79103211,0.00013283,2]
[334533369,1723174709229,206.08528182,0.00013283,2]
[334533370,1723174710557,475.1,0.00010959,2]
[334533371,1723174714117,35031.14789157,0.00015953,2]
[334533372,1723174717314,88016.45227744,0.00015953,2]
[334533373,1723174721239,1025.17,0.00010959,2]
[334533374,1723174722091,1142.657,0.0002475,120]
[334533375,1723174722299,1142.657,0.0002475,120]
[334533376,1723174722340,1142.657,0.0002475,120]
[334533377,1723174722399,1142.657,0.0002475,120]
[334533378,1723174722753,1142.658,0.0002475,120]
[334533379,1723174731763,854.31,0.00010959,2]
[334533380,1723174742270,711.92,0.00010959,2]
[334533381,1723174752783,593.27,0.00010959,2]
[334533382,1723174763484,494.39,0.00010959,2]
[334533383,1723174766634,35031.14789157,0.00013283,2]
[334533384,1723174773989,411.99,0.00010959,2]
[334533385,1723174782203,154.79103211,0.00013283,2]
[334533386,1723174784507,343.33,0.00010959,2]
[334533387,1723174795005,286.1,0.00010959,2]
[334533388,1723174797152,154.79103211,0.00013283,2]
[334533389,1723174803167,201.20456961,0.00013283,2]
[334533390,1723174805550,238.42,0.00010959,2]
[334533391,1723174814994,240.94479863,0.00013283,2]
[334533392,1723174816051,198.68,0.00010959,2]
[334533393,1723174826201,155.15061555,0.00013283,2]
[334533394,1723174826573,165.57,0.00010959,2]
[334533395,1723174831871,387.39291492,0.000161,7]
[334533396,1723174837058,827.88,0.00010959,2]
[334533398,1723174869167,314.09240613,0.00013283,2]
[334533399,1723174874823,182.875803,0.00014876,2]
[334533400,1723174875061,182.875803,0.00014895,2]
[334533401,1723174875287,182.875803,0.00014913,2]
[334533402,1723174875493,182.875803,0.00014932,2]
[334533403,1723174875731,182.875803,0.00014951,2]
[334533404,1723174883363,155.41420624,0.00014,2]
[334533405,1723174907996,273.37336231,9.9e-05,2]
[334533406,1723174929180,314.09240613,0.00013283,2]
[334533407,1723174932533,913.0431353,0.00015,2]
[334533408,1723174947895,292.4701391,0.00012,2]
[334533409,1723174948033,267.78292723,0.00012,2]
[334533410,1723174949531,2299.32562192,0.00012,3]
[334533411,1723174951198,172.36803471,0.00012,2]
[334533412,1723174953657,273.37336231,9.9e-05,2]
[334533413,1723174957301,154.85457168,0.00015,2]
[334533414,1723174957585,154.84042217,0.00012,2]
[334533415,1723174958721,302.93526009,0.00012,2]
[334533416,1723174959058,1653.01582857,0.00012,7]
[334533417,1723174961185,869.54525531,0.00012,7]
[334533418,1723174962136,247.7266478,0.00014,2]
[334533419,1723174962538,155.35916191,0.00012,2]
[334533420,1723174962820,170.14395144,0.00013,2]
[334533421,1723174966230,155.39631704,0.00012,2]
[334533422,1723174969247,172.65064241,9.9e-05,2]
[334533423,1723174970021,305.74243392,0.00012,2]
[334533424,1723174970277,154.79289956,0.00012,2]
[334533425,1723174972085,154.88961185,0.00012,2]
[334533426,1723174980026,2751.7020396,0.00014745,2]
[334533427,1723174983079,154.95892306,0.00012,2]
[334533428,1723174983778,1047.82207811,0.00014545,2]
[334533429,1723174990235,314.09240613,0.00012,2]
[334533430,1723174991501,852.94600529,0.00015,2]
[334533431,1723174994923,742.33143915,0.00014545,2]
[334533432,1723175006568,356.6787153,0.00014545,2]
[334533433,1723175012778,154.82996095,0.00014545,2]
[334533434,1723175019077,154.79103211,0.00014545,2]
[334533435,1723175023891,250.0,0.00014819,2]
[334533436,1723175024121,250.0,0.00014859,2]
[334533437,1723175024402,250.0,0.000149,2]
[334533438,1723175024867,250.0,0.00014941,2]
[334533439,1723175024928,250.0,0.00014981,2]
[334533440,1723175027600,24900.0,0.00014708,2]
[334533441,1723175067525,100000.0,0.0001469,2]
[334533442,1723175082022,3000.0,0.00014424,2]
[334533443,1723175192800,172.65064241,9.9e-05,2]
[334533444,1723175201490,1567.65921,0.00014401,2]
[334533445,1723175207913,273.37336231,9.9e-05,2]
[334533446,1723175212076,494.53502099,9.999e-05,2]
[334533447,1723175223440,273.37336231,9.9e-05,2]
[334533448,1723175239301,13159.8837516,0.00014401,2]
[334533449,1723175239871,273.37336231,9.9e-05,2]
[334533450,1723175244917,500.0,0.00025,60]
[334533451,1723175245985,500.0,0.00025,60]
[334533452,1723175246591,500.0,0.00025,60]
[334533453,1723175247152,500.0,0.00025,60]
[334533454,1723175247680,500.0,0.00025,60]
[334533455,1723175248201,500.0,0.00025,60]
[334533456,1723175249096,500.0,0.00025,60]
[334533457,1723175249831,500.0,0.00025,60]
[334533458,1723175250580,500.0,0.00025,60]
[334533459,1723175251267,500.0,0.00025,60]
[334533460,1723175251890,500.0,0.00025,60]
[334533461,1723175252530,500.0,0.00025,60]
[334533462,1723175253163,500.0,0.00025,60]
[334533463,1723175253815,500.0,0.00025,60]
[334533464,1723175254457,205.0,0.00025,60]
[334533465,1723175256243,273.37336231,9.9e-05,2]
[334533466,1723175269430,963.26514221,0.00012,2]
[334533467,1723175272361,273.37336231,9.9e-05,2]
[334533468,1723175281155,16292.9666897,0.00012,2]
[334533469,1723175284438,2759.290569,0.00012,2]
[334533470,1723175285833,4714.09712178,0.00012,2]
[334533471,1723175287658,189.86108484,9.999e-05,2]
[334533472,1723175287871,273.37336231,9.9e-05,2]
[334533473,1723175295849,1070.6419705,0.00012,2]
[334533474,1723175295937,649.11248572,0.00012,2]
[334533475,1723175296227,5726.75238617,0.00012,2]
[334533476,1723175296896,1416.15916392,0.00012,2]
[334533477,1723175303175,273.37336231,9.9e-05,2]
[334533478,1723175307533,5238.43426144,0.00015,2]
[334533479,1723175310144,849.90944882,9.999e-05,2]
[334533480,1723175311070,309.21151064,9.999e-05,2]
[334533481,1723175313737,460.04462709,0.00015,4]
[334533482,1723175314385,1109.52360725,0.00015,2]
[334533483,1723175316175,709.59190356,0.00015,2]
[334533484,1723175318896,273.37336231,9.9e-05,2]
[334533485,1723175322065,154.79103211,9.999e-05,2]
[334533486,1723175322906,156.69756504,9.999e-05,2]
[334533487,1723175323144,196.39492313,9.999e-05,2]
[334533488,1723175324102,165.64084866,9.999e-05,2]
[334533489,1723175328456,189.86108484,0.00014545,2]
[334533490,1723175328516,154.79103211,9.999e-05,2]
[334533491,1723175329687,156.91765496,9.999e-05,2]
[334533492,1723175334322,534.23635652,9.999e-05,2]
[334533493,1723175334781,273.37336231,9.9e-05,2]
[334533494,1723175335075,154.79103211,9.999e-05,2]
[334533495,1723175335158,568.89588544,9.999e-05,2]
[334533496,1723175336399,155.13366212,9.999e-05,2]
[334533497,1723175339389,154.79103211,9.999e-05,2]
[334533498,1723175340773,3004.01681494,0.00014545,2]
[334533499,1723175345849,154.79103211,9.999e-05,2]
[334533500,1723175346119,568.89588544,9.999e-05,2]
[334533501,1723175350922,273.37336231,9.9e-05,2]
[334533502,1723175353145,-250.0,0.00015022,2]
[334533503,1723175353169,-250.0,0.00015063,2]
[334533504,1723175353191,-250.0,0.00015103,2]
[334533505,1723175353213,-250.0,0.00015144,2]